bitfinex-derivatives/quotes_ETHF0:USTF0_20250929
["timestamp","ask_amount","ask_price","bid_price","bid_amount"]
[1759188670338,1.61157114,4222.6,4222.5,0.8949]
[1759188671938,1.76137114,4222.6,4222.5,0.4571]
[1759188672138,1.76137114,4222.6,4222.5,0.3294]
[1759188673135,0.64704,4222.1,4222.0,0.67432551]
[1759188673332,1.61162114,4222.1,4222.0,0.67432551]
[1759188675338,1.76162114,4222.1,4222.0,0.67432551]
[1759188676035,1.61162114,4222.1,4222.0,0.67432551]
[1759188676642,1.61162114,4222.1,4222.0,1.31127551]
[1759188676843,0.96768114,4222.1,4222.0,1.31127551]
[1759188677246,0.64704,4222.1,4222.0,1.31127551]
[1759188677436,0.66404,4222.1,4222.0,1.31127551]
[1759188678436,0.42604,4222.1,4222.0,1.31127551]
[1759188678635,0.66404,4222.1,4222.0,1.31127551]
[1759188679845,0.64269,4222.6,4222.5,0.8706]
[1759188680041,1.38830999,4222.6,4222.5,0.8706]
[1759188681843,1.15030999,4222.6,4222.5,0.8706]
[1759188682048,1.61140999,4222.6,4222.5,0.8706]
[1759188684948,1.37340999,4222.6,4222.5,0.8706]
[1759188685154,1.61140999,4222.6,4222.5,0.8706]
[1759188686048,1.37340999,4222.6,4222.5,0.8706]
[1759188686256,1.61140999,4222.6,4222.5,0.8706]
[1759188686751,0.95561999,4222.6,4222.5,1.2966]
[1759188686953,1.38160999,4222.6,4222.5,0.8706]
[1759188687553,0.95561999,4222.6,4222.5,1.2966]
[1759188687850,1.38160999,4222.6,4222.5,1.2966]
[1759188688154,1.38160999,4222.6,4222.5,0.8706]
[1759188689350,1.75460999,4222.6,4222.5,0.4359]
[1759188689551,1.75460999,4222.6,4222.5,0.3124]
[1759188690251,0.4332,4222.1,4222.0,0.77837551]
[1759188690450,0.6712,4222.1,4222.0,1.09867551]
[1759188690752,1.24704,4222.1,4222.0,0.67262551]
[1759188690946,1.24704,4222.1,4222.0,0.00202551]
[1759188690947,1.32937633,4222.1,4222.0,0.00202551]
[1759188691247,1.75541633,4222.1,4222.0,0.32232551]
[1759188695549,1.75541633,4222.1,4222.0,0.00202551]
[1759188696159,1.75541633,4222.1,4222.0,0.32232551]
[1759188696659,1.75541633,4222.1,4222.0,0.00202551]
[1759188696850,1.75541633,4222.1,4222.0,0.32232551]
[1759188697353,1.75541633,4222.1,4222.0,0.67852551]
[1759188698258,1.75541633,4222.1,4222.0,0.32232551]
[1759188702770,1.75541633,4222.1,4222.0,0.67852551]
[1759188704174,1.1361,4221.6,4221.5,0.5429]
[1759188704366,1.88247633,4221.6,4221.5,0.5429]
[1759188704565,1.45637633,4221.6,4221.0,0.1333]
[1759188704768,0.4332,4221.2,4221.1,0.7569]
[1759188704966,0.6712,4221.2,4221.1,0.7569]
[1759188705173,0.6712,4221.2,4221.1,0.75857248]
[1759188705574,0.6712,4221.2,4221.1,1.18472248]
[1759188705773,0.448,4221.2,4221.1,1.18472248]
[1759188705975,0.238,4221.2,4221.1,1.18472248]
[1759188707370,0.42607,4221.9,4221.7,0.3203]
[1759188707674,1.28807843,4221.8,4221.7,0.7569]
[1759188714383,1.38207843,4221.8,4221.7,0.7569]
[1759188718983,0.95600843,4221.8,4221.7,0.7569]
[1759188719573,0.95600843,4221.8,4221.7,1.18298]
[1759188719773,0.50800843,4221.8,4221.7,0.7569]
[1759188719978,0.74600843,4221.8,4221.7,6.18298]
[1759188721276,0.74600843,4221.8,4221.7,5.7569]
[1759188721785,1.87627843,4221.8,4221.7,0.5429]
[1759188722085,1.87627843,4221.8,4221.7,0.3203]
[1759188722281,1.59937843,4221.8,4221.7,0.7369]
[1759188723479,1.87627843,4221.8,4221.7,0.7369]
[1759188727697,1.87627843,4221.8,4221.7,0.3203]
[1759188729298,1.59937843,4221.8,4221.7,0.7369]
[1759188729501,0.93407843,4221.8,4221.7,0.7369]
[1759188729689,1.17207843,4221.8,4221.7,0.7369]
[1759188730291,1.17303123,4221.8,4221.7,0.7369]
[1759188730592,0.95606123,4221.8,4221.7,0.7369]
[1759188730799,0.95606123,4221.8,4221.7,1.16299]
[1759188733500,0.74696123,4221.8,4221.7,1.16299]
[1759188733702,0.50896123,4221.8,4221.7,1.16299]
[1759188733892,0.238,4222.0,4221.9,0.42606]
[1759188734091,0.8533,4222.5,4222.4,0.2048]
[1759188734297,1.87701032,4222.5,4222.4,0.524]
[1759188736802,1.87701032,4222.5,4222.4,0.3192]
[1759188737997,1.87697908,4222.5,4222.4,0.3192]
[1759188744507,1.63897908,4222.5,4222.4,0.3192]
[1759188744701,1.87697908,4222.5,4222.4,0.3192]
[1759188745106,1.87697908,4222.5,4222.4,0.5315]
[1759188746509,1.36207908,4222.5,4222.4,0.7534]
[1759188746716,1.60007908,4222.5,4222.4,0.7534]
[1759188747105,1.87697908,4222.5,4222.4,0.7534]
[1759188747808,1.87697908,4222.5,4222.4,0.5315]
[1759188749318,1.87697908,4222.5,4222.4,0.3192]
[1759188749519,0.42604,4222.1,4222.0,0.129]
[1759188749723,1.35194,4222.1,4222.0,0.129]
[1759188749922,1.86071908,4222.1,4222.0,0.3477]
[1759188750121,1.86071908,4222.1,4222.0,0.6702]
[1759188753423,0.74677908,4222.1,4222.0,1.31815]
[1759188754229,1.17281908,4222.1,4222.0,0.8921]
[1759188754823,0.74677908,4222.1,4222.0,1.31815]
[1759188755027,0.50877908,4222.1,4222.0,1.31815]
[1759188755326,0.93523887,4222.2,4222.1,0.7631]
[1759188755818,1.34623887,4222.2,4222.1,0.7631]
[1759188756018,0.93523887,4222.2,4222.1,0.7631]
[1759188757522,1.13953887,4222.2,4222.1,0.7631]
[1759188763528,1.34623887,4222.2,4222.1,0.7631]
[1759188764033,1.62313887,4222.2,4222.1,0.7631]
[1759188764218,1.34623887,4222.2,4222.1,0.7631]
[1759188766129,0.2067,4221.7,4221.6,0.7631]
[1759188766334,0.411,4221.7,4221.6,0.7631]
[1759188767235,0.83708,4221.7,4221.6,1.18919]
[1759188767532,0.2043,4221.7,4221.6,1.18919]
[1759188767932,0.63038,4221.7,4221.6,0.7631]
[1759188768126,0.63038,4221.7,4221.6,1.18919]
[1759188770036,0.86837,4221.9,4221.8,1.18917]
[1759188770337,1.86110188,4221.9,4221.8,0.7631]
[1759188770522,1.86110188,4221.9,4221.8,1.18917]
[1759188770727,1.58420188,4221.9,4221.8,1.18917]
[1759188771222,1.58420188,4221.9,4221.8,0.7631]
[1759188771527,0.63043,4221.2,4221.1,0.86841248]
[1759188771838,0.83713,4221.2,4221.1,0.86841248]
[1759188772132,0.83713,4221.2,4221.1,1.19091248]
[1759188772533,0.411,4221.2,4221.1,0.76477248]
[1759188772833,0.83713,4221.2,4221.1,1.19091248]
[1759188773436,1.11403,4221.2,4221.1,0.76477248]
[1759188773828,1.11403,4221.2,4221.1,1.19091248]
[1759188774630,1.11403,4221.2,4221.1,0.32417248]
[1759188775027,1.11403,4221.2,4221.1,0.54147248]
[1759188775222,1.11403,4221.2,4221.1,0.96761248]
[1759188775932,1.11403,4221.2,4221.1,1.17581248]
[1759188776236,0.83713,4221.2,4221.1,1.17581248]
[1759188778537,0.83713,4221.2,4221.1,0.74967248]
[1759188779034,1.11413,4221.2,4221.1,0.74967248]
[1759188779232,1.11413,4221.2,4221.1,1.17581248]
[1759188779536,0.83713,4221.2,4221.1,1.17581248]
[1759188780435,1.11413,4221.2,4221.1,1.17581248]
[1759188780738,0.83713,4221.2,4221.1,1.17581248]
[1759188781233,0.411,4221.2,4221.1,1.17581248]
[1759188781635,0.83713,4221.2,4221.1,1.17581248]
[1759188783236,0.2043,4221.2,4221.1,1.17581248]
[1759188783432,0.646,4221.6,4221.5,0.3459]
[1759188783638,1.30445694,4221.6,4221.5,0.8915]
[1759188784439,0.72835694,4221.6,4221.5,1.3176]
[1759188784632,0.96635694,4221.6,4221.5,1.3176]
[1759188785939,1.15444694,4221.6,4221.5,0.8915]
[1759188786138,1.87294694,4221.6,4221.5,0.8915]
[1759188786735,1.63494694,4221.6,4221.5,0.8915]
[1759188786938,1.87294694,4221.6,4221.5,0.8915]
[1759188787145,1.87294694,4221.6,4221.5,1.3176]
[1759188787341,1.63494694,4221.6,4221.5,0.8915]
[1759188787541,1.87294694,4221.6,4221.5,1.3176]
[1759188788637,1.87294694,4221.6,4221.5,0.8915]
[1759188789144,1.87294694,4221.6,4221.5,1.3176]
[1759188789342,1.87294694,4221.6,4221.5,0.8915]
[1759188789734,1.87294694,4221.6,4221.5,0.6833]
[1759188790238,1.44685694,4221.6,4221.5,0.6833]
[1759188790940,1.44685694,4221.6,4221.5,1.1094]
[1759188791245,1.87294694,4221.6,4221.5,0.6833]
[1759188791739,1.87294694,4221.6,4221.5,0.3374]
[1759188792042,0.7004,4221.3,4221.2,0.64343]
[1759188792430,0.7004,4221.3,4221.2,0.98083]
[1759188792633,0.4234,4221.3,4221.2,1.18903]
[1759188796038,1.35815523,4221.3,4221.2,1.18903]
[1759188796845,1.35815523,4221.3,4221.2,0.7629]
[1759188798140,1.35815523,4221.3,4221.2,1.18903]
[1759188798647,0.72853523,4221.3,4221.2,1.18903]
[1759188798944,0.50863523,4221.3,4221.2,1.18903]
[1759188804649,0.93475523,4221.3,4221.2,1.18903]
[1759188805248,0.50863523,4221.3,4221.2,1.18903]
[1759188809749,0.50863523,4221.3,4221.2,0.7629]
[1759188811656,0.93475523,4221.3,4221.2,0.7629]
[1759188813859,0.93475523,4221.3,4221.2,1.18903]
[1759188814359,0.93475523,4221.3,4221.2,0.7629]
[1759188816058,1.15015523,4221.3,4221.2,0.7629]
[1759188820463,0.93475523,4221.3,4221.2,0.7629]
[1759188821063,1.15015523,4221.3,4221.2,0.7629]
[1759188821264,0.50863523,4221.3,4221.2,0.7629]
[1759188822164,0.93475523,4221.3,4221.2,0.7629]
[1759188822364,1.36165523,4221.3,4221.2,0.7629]
[1759188822670,0.93475523,4221.3,4221.2,0.7629]
[1759188823459,0.50863523,4221.3,4221.2,0.7629]
[1759188824367,0.93475523,4221.3,4221.2,0.7629]
[1759188828566,0.50863523,4221.3,4221.2,0.7629]
[1759188829066,0.50863523,4221.3,4221.2,1.18903]
[1759188830972,0.87945,4222.0,4221.9,0.7406]
[1759188831173,1.38846974,4222.0,4221.9,0.7406]
[1759188831563,1.87676974,4222.0,4221.9,0.7406]
[1759188832061,1.87676974,4222.0,4221.9,0.53]
[1759188834065,1.45071974,4222.0,4221.9,0.53]
[1759188834265,1.17391974,4222.0,4221.9,1.16666]
[1759188834864,1.17391974,4222.0,4221.9,0.7406]
[1759188836675,1.59996974,4222.0,4221.9,0.7406]
[1759188837160,1.17391974,4222.0,4221.9,0.7406]
[1759188837870,1.59996974,4222.0,4221.9,0.7406]
[1759188838066,0.93591974,4222.0,4221.9,0.7406]
[1759188838268,1.59996974,4222.0,4221.9,0.7406]
[1759188839471,0.72441974,4222.0,4221.9,0.7406]
[1759188839677,0.74701974,4222.0,4221.9,0.7406]
[1759188841174,1.17306974,4222.0,4221.9,0.7406]
[1759188841469,1.86196974,4222.0,4221.9,0.3167]
[1759188842073,1.86196974,4222.0,4221.9,0.5313]
[1759188842279,0.74701974,4222.0,4221.9,0.7513]
[1759188842477,0.50901974,4222.0,4221.9,0.7513]
[1759188843175,0.66404,4222.1,4221.9,0.7513]
[1759188843472,0.66404,4222.1,4222.0,0.8757]
[1759188843675,1.58353522,4222.1,4222.0,0.8757]
[1759188844078,1.86033522,4222.1,4222.0,0.8757]
[1759188845784,1.34553522,4222.1,4222.0,0.8757]
[1759188846478,0.91949522,4222.1,4222.0,0.8757]
[1759188846875,0.71559522,4222.1,4222.0,0.8757]
[1759188847779,0.50739522,4222.1,4222.0,0.8757]
[1759188847986,0.93343522,4222.1,4222.0,0.8757]
[1759188850382,1.62233522,4222.1,4222.0,0.8757]
[1759188851579,0.2082,4221.7,4221.6,0.3116]
[1759188851779,0.6889,4221.7,4221.6,0.5262]
[1759188851980,1.11497,4221.7,4221.6,0.5262]
[1759188852481,0.6889,4221.7,4221.6,0.5262]
[1759188852887,0.6889,4221.7,4221.6,0.7462]
[1759188853188,0.83816,4221.7,4221.6,0.7462]
[1759188854189,1.11496,4221.7,4221.6,0.7462]
[1759188856289,0.83816,4221.7,4221.6,0.7462]
[1759188857187,1.11506,4221.7,4221.6,0.7462]
[1759188858899,0.83816,4221.7,4221.6,0.7462]
[1759188859586,1.11506,4221.7,4221.6,0.7462]
[1759188860181,1.62287297,4221.7,4221.6,0.7462]
[1759188860494,1.34597634,4221.7,4221.6,0.7462]
[1759188860695,1.34597297,4221.7,4221.6,0.7462]
[1759188860991,1.34597596,4221.7,4221.6,0.7462]
[1759188861294,0.83816,4221.7,4221.6,0.7462]
[1759188861490,1.34599079,4221.7,4221.6,0.7462]
[1759188861695,0.83816,4221.7,4221.6,0.7462]
[1759188862894,0.83816,4221.7,4221.6,1.17228]
[1759188863296,1.34603693,4221.7,4221.6,1.17228]
[1759188863889,1.34603693,4221.7,4221.6,0.7462]
[1759188865494,1.34603693,4221.7,4221.6,1.17228]
[1759188865992,0.91997693,4221.7,4221.6,1.17228]
[1759188866296,0.50787693,4221.7,4221.6,1.17228]
[1759188867291,0.93394693,4221.7,4221.6,0.7462]
[1759188867489,0.42607,4221.7,4221.6,1.17228]
[1759188867796,0.2069,4221.7,4221.6,1.17228]
[1759188868700,0.66405,4221.9,4221.8,0.42606]
[1759188868993,1.37886885,4221.9,4221.8,0.4268]
[1759188869198,1.37886885,4221.9,4221.8,0.7352]
[1759188869696,0.95281885,4221.9,4221.8,0.7352]
[1759188869892,1.37886885,4221.9,4221.8,1.16126]
[1759188870800,1.14086885,4221.9,4221.8,0.7352]
[1759188871300,1.14086885,4221.9,4221.8,1.16126]
[1759188871500,1.14086885,4221.9,4221.8,0.7352]
[1759188871900,1.1389881,4221.9,4221.8,0.7352]
[1759188872601,1.1389881,4221.9,4221.8,1.16126]
[1759188873003,1.1389881,4221.9,4221.8,0.7352]
[1759188874711,1.3550881,4221.9,4221.8,0.7352]
[1759188874907,1.6315881,4221.9,4221.8,0.7352]
[1759188875112,1.6315881,4221.9,4221.8,0.3084]
[1759188881618,1.6315881,4221.9,4221.8,0.5136]
[1759188883018,1.6315881,4221.9,4221.8,0.3084]
[1759188887324,1.3550881,4221.9,4221.8,0.7352]
[1759188888524,1.6315881,4221.9,4221.8,0.7352]
[1759188889317,0.42608,4221.6,4221.5,0.1334]
[1759188889623,1.6316181,4221.6,4221.5,0.1334]
[1759188889922,1.6316181,4221.6,4221.5,0.4418]
[1759188890223,1.6316181,4221.6,4221.5,0.3084]
[1759188900429,1.6316181,4221.6,4221.1,0.33117248]
[1759188900430,0.42612,4221.2,4221.1,0.33117248]
[1759188900631,1.38262,4221.2,4221.1,0.96240248]
[1759188901035,1.10542,4221.2,4221.1,1.17170248]
[1759188901624,0.6793,4221.2,4221.1,1.17170248]
[1759188902129,0.88192,4221.2,4221.1,1.17170248]
[1759188904838,0.88192,4221.2,4221.1,0.74557248]
[1759188905532,0.88192,4221.2,4221.1,1.17170248]
[1759188906139,0.88192,4221.2,4221.1,0.74557248]
[1759188906639,34.108,4222.6,4221.1,0.74557248]
[1759188906640,0.86735,4221.9,4221.8,0.7439]
[1759188906938,1.38827828,4221.9,4221.8,0.7439]
[1759188907434,1.38827828,4221.9,4221.8,1.16996]
[1759188908535,0.72422828,4221.9,4221.8,1.16996]
[1759188908733,0.86733,4222.1,4222.0,0.97584]
[1759188908937,1.61178388,4222.1,4222.0,1.30534]
[1759188910336,1.18575388,4222.1,4222.0,1.30534]
[1759188911843,0.94775388,4222.1,4222.0,1.30534]
[1759188912236,1.18575388,4222.1,4222.0,1.30534]
[1759188913440,1.61178388,4222.1,4222.0,0.8793]
[1759188913641,1.88898388,4222.1,4222.0,0.8793]
[1759188913945,1.88898388,4222.1,4222.0,1.30534]
[1759188914137,1.88898388,4222.1,4222.0,0.8793]
[1759188914540,1.88898388,4222.1,4222.0,0.67]
[1759188914737,1.88898388,4222.1,4222.0,0.3295]
[1759188915139,0.696,4221.7,4221.6,0.5342]
[1759188915343,0.696,4221.7,4221.6,0.96028]
[1759188916647,0.696,4221.7,4221.6,1.17028]
[1759188918143,1.12208,4221.7,4221.6,0.7442]
[1759188919143,0.696,4221.7,4221.6,1.17029]
[1759188919944,0.4191,4221.7,4221.6,1.17029]
[1759188920345,0.84517,4221.7,4221.6,1.17029]
[1759188921751,0.84517,4221.7,4221.6,0.7442]
[1759188922256,1.12207,4221.7,4221.6,0.3207]
[1759188924754,1.12207,4221.7,4221.6,0.5342]
[1759188925552,1.12207,4221.7,4221.6,0.96028]
[1759188925850,0.84517,4221.7,4221.6,1.18398]
[1759188926051,0.84517,4221.7,4221.6,0.7579]
[1759188927052,1.12207,4221.7,4221.6,0.7579]
[1759188928354,1.12207,4221.7,4221.6,1.18398]
[1759188928654,1.12207,4221.7,4221.6,0.7579]
[1759188929352,1.62899421,4221.7,4221.6,0.7579]
[1759188930051,1.62899421,4221.7,4221.6,1.18398]
[1759188930655,1.62899421,4221.7,4221.6,0.7579]
[1759188931357,1.35209421,4221.7,4221.6,1.18398]
[1759188931656,1.59009421,4221.7,4221.6,1.18398]
[1759188932454,1.86699421,4221.7,4221.6,1.18398]
[1759188933555,1.86699421,4221.7,4221.6,0.7579]
[1759188933756,1.86699421,4221.7,4221.6,1.18398]
[1759188934260,1.59009421,4221.7,4221.6,1.18398]
[1759188936961,1.35209421,4221.7,4221.6,1.18398]
[1759188937259,1.59009421,4221.7,4221.6,1.18398]
[1759188940155,1.16402421,4221.7,4221.6,1.18398]
[1759188942260,1.59009421,4221.7,4221.6,1.18398]
[1759188943160,1.16402421,4221.7,4221.6,1.18398]
[1759188944464,1.59009421,4221.7,4221.6,1.18398]
[1759188944765,1.16402421,4221.7,4221.6,1.18398]
[1759188945862,1.59009421,4221.7,4221.6,0.7579]
[1759188946061,1.86699421,4221.7,4221.6,1.18398]
[1759188946260,1.16402421,4221.7,4221.6,1.18398]
[1759188948466,1.59009421,4221.7,4221.6,1.18398]
[1759188948665,1.19965,4221.5,4221.1,0.00167248]
[1759188948869,1.15772,4221.2,4221.1,0.00167248]
[1759188949170,1.90264421,4221.2,4221.1,0.00167248]
[1759188952766,6.90264421,4221.2,4221.1,0.00167248]
[1759188952959,6.90264421,4221.2,4220.4,0.3062]
[1759188952960,0.84409,4220.5,4220.4,0.3062]
[1759188953166,2.03711421,4220.5,4220.4,0.3062]
[1759188953667,2.03711421,4220.5,4220.4,0.5108]
[1759188953865,2.03711421,4220.5,4220.4,0.51386969]
[1759188954067,1.61092421,4220.5,4220.4,0.51386969]
[1759188954267,1.39579,4220.5,4220.4,0.73756969]
[1759188955564,1.39579,4220.5,4220.4,1.16376969]
[1759188955763,0.9696,4220.5,4220.4,1.16376969]
[1759188957071,1.39579,4220.5,4220.4,1.16376969]
[1759188958073,0.9696,4220.5,4220.4,1.16376969]
[1759188958262,1.39579,4220.5,4220.4,1.16376969]
[1759188960172,0.9696,4220.5,4220.4,0.73756969]
[1759188960367,1.39579,4220.5,4220.4,0.73756969]
[1759188961268,0.9696,4220.5,4220.4,1.16376969]
[1759188961572,0.9696,4220.5,4220.4,0.73756969]
[1759188961765,1.39579,4220.5,4220.4,0.73756969]
[1759188965974,1.39579,4220.5,4220.4,0.51386969]
[1759188966270,1.51769,4220.5,4220.4,0.00306969]
[1759188970277,1.39579,4220.5,4220.4,0.76196969]
[1759188971974,1.08209,4220.5,4220.4,1.18816969]
[1759188972281,1.54179,4220.5,4220.4,0.54106969]
[1759188972978,1.54179,4220.5,4220.4,0.00306969]
[1759188974481,2.05527952,4220.5,4220.4,0.00306969]
[1759188977081,0.42624,4220.0,4219.9,0.00698388]
[1759188977383,1.54154,4220.0,4219.9,0.00698388]
[1759188978183,1.54419397,4220.0,4219.9,0.00936736]
[1759188978484,2.05839966,4220.0,4219.9,0.00936736]
[1759188979380,1.82039966,4220.0,4219.9,0.54736736]
[1759188979580,2.05839966,4220.0,4219.9,0.54736736]
[1759188980184,1.82039966,4220.0,4219.9,0.54736736]
[1759188980388,2.05839966,4220.0,4219.9,0.54736736]
[1759188983792,1.82039966,4220.0,4219.9,0.54736736]
[1759188983992,2.05839966,4220.0,4219.9,0.54736736]
[1759188988997,2.05839966,4220.0,4219.9,0.97362736]
[1759188990097,1.82039966,4220.0,4219.9,0.97362736]
[1759188990299,2.05839966,4220.0,4219.9,0.97362736]
[1759188990494,0.4403,4219.3,4219.2,0.5266]
[1759188990693,0.9839,4219.3,4218.6,1.06598]
[1759188990892,0.4403,4219.0,4218.9,0.5266]
[1759188991097,1.17225,4219.0,4218.9,0.5266]
[1759188991593,1.17225,4219.0,4218.9,0.52963812]
[1759188993302,1.17225,4219.0,4218.9,0.95599812]
[1759188994091,1.17225,4219.0,4218.9,0.52963812]
[1759189000809,1.30095,4219.0,4218.9,0.00303812]
[1759189005506,1.53895,4219.0,4218.9,0.30973812]
[1759189007908,1.53895,4219.0,4218.9,0.52963812]
[1759189011011,1.30095,4219.0,4218.9,0.52963812]
[1759189011308,1.41025,4219.0,4218.9,0.73563812]
[1759189011515,1.53895,4219.0,4218.9,0.52963812]
[1759189016406,2.04048365,4219.0,4218.9,0.52963812]
[1759189017909,1.41025,4219.0,4218.9,0.74553812]
[1759189018312,1.91212396,4219.0,4218.9,0.74553812]
[1759189019907,1.67412396,4219.0,4218.9,0.74553812]
[1759189020304,1.91212396,4219.0,4218.9,0.74553812]
[1759189020505,1.91212396,4219.0,4218.9,1.17189812]
[1759189021908,0.72587396,4219.0,4218.9,1.17189812]
[1759189022108,0.73987396,4219.0,4218.9,1.17189812]
[1759189023412,0.5404,4219.3,4219.2,1.17913]
[1759189023613,1.28160653,4219.3,4219.2,1.17913]
[1759189024012,0.71180653,4219.3,4219.2,1.17913]
[1759189024215,0.50320653,4219.3,4219.2,1.17913]
[1759189024515,0.5404,4219.6,4219.5,1.3024]
[1759189024715,1.28140474,4219.6,4219.5,1.3024]
[1759189025011,0.71160474,4219.6,4219.5,1.3024]
[1759189025213,1.28140474,4219.6,4219.5,1.3024]
[1759189025515,0.7784,4219.6,4219.5,1.3024]
[1759189028514,0.9857,4219.6,4219.5,1.3024]
[1759189034919,0.7477,4219.6,4219.5,1.3024]
[1759189042725,0.2086,4219.6,4219.5,1.3024]
[1759189042932,1.19356,4219.9,4219.8,1.18857]
[1759189043132,1.19356,4219.9,4219.8,0.7623]
[1759189043430,1.41136,4219.9,4219.8,0.7623]
[1759189044428,1.91400814,4219.9,4219.8,0.7623]
[1759189044629,1.91400814,4219.9,4219.8,0.5461]
[1759189050635,0.42632,4219.3,4219.1,0.42633]
[1759189050828,1.18704,4219.1,4219.0,0.204]
[1759189051028,0.238,4219.3,4218.5,0.5603]
[1759189051029,1.31335,4219.0,4218.5,0.5603]
[1759189051230,1.31335,4219.0,4218.7,0.3244]
[1759189051733,1.31335,4219.0,4218.5,0.5603]
[1759189051935,1.31335,4219.0,4218.9,0.53143812]
[1759189056034,1.31335,4219.0,4218.9,0.00303812]
[1759189056337,1.31335,4219.0,4218.9,0.32743812]
[1759189057834,1.31335,4219.0,4218.9,0.00303812]
[1759189060433,1.31335,4219.0,4218.9,0.53143812]
[1759189060739,0.7607,4219.0,4218.9,1.16949812]
[1759189061340,1.42505,4219.0,4218.9,1.16949812]
[1759189063842,1.18705,4219.0,4218.9,1.16949812]
[1759189064144,1.42505,4219.0,4218.9,1.16949812]
[1759189064839,0.9987,4219.0,4218.9,1.16949812]
[1759189066938,0.7607,4219.0,4218.9,1.16949812]
[1759189067142,0.9987,4219.0,4218.9,1.16949812]
[1759189068037,0.7607,4219.0,4218.9,1.16949812]
[1759189069247,0.238,4219.1,4219.0,1.29125]
[1759189069437,0.74062,4219.4,4219.3,0.42632]
[1759189069637,0.74058,4219.7,4219.3,0.7401]
[1759189069942,1.20398,4219.7,4219.6,0.7401]
[1759189070147,1.92836754,4219.7,4219.6,0.7401]
[1759189071244,1.92836754,4219.7,4219.6,1.16639]
[1759189071846,1.92836754,4219.7,4219.6,0.7401]
[1759189074847,1.69036754,4219.7,4219.6,0.7401]
[1759189075050,1.92836754,4219.7,4219.6,0.7401]
[1759189075240,1.50208754,4219.7,4219.6,1.16639]
[1759189075547,1.92836754,4219.7,4219.6,1.16639]
[1759189077649,1.50208754,4219.7,4219.6,1.16639]
[1759189079642,1.50225361,4219.7,4219.6,1.16639]
[1759189080248,1.92853361,4219.7,4219.6,1.16639]
[1759189080748,1.92853361,4219.7,4219.6,0.7401]
[1759189082346,1.92853361,4219.7,4219.6,1.16639]
[1759189082655,1.92853361,4219.7,4219.6,0.7401]
[1759189085150,1.92853361,4219.7,4219.6,1.16639]
[1759189085348,1.92853361,4219.7,4219.6,0.7401]
[1759189092151,1.69053361,4219.7,4219.6,0.7401]
[1759189092453,1.92853361,4219.7,4219.6,0.7401]
[1759189105254,1.92853361,4219.7,4219.6,1.16639]
[1759189123868,1.69053361,4219.7,4219.6,1.16639]
[1759189124061,1.92853361,4219.7,4219.6,1.16639]
[1759189125862,0.50355361,4219.7,4219.6,1.16639]
[1759189126063,0.95710397,4220.0,4219.9,0.84626]
[1759189126263,1.46072789,4220.0,4219.9,1.17636]
[1759189126465,1.69872789,4220.0,4219.9,1.17636]
[1759189126864,1.27247789,4220.0,4219.9,1.17636]
[1759189127370,0.71127789,4220.0,4219.9,1.17636]
[1759189127666,0.74427789,4220.0,4219.9,1.17636]
[1759189128570,1.91162789,4220.0,4219.9,1.17636]
[1759189129968,1.67362789,4220.0,4219.9,1.17636]
[1759189130167,1.91162789,4220.0,4219.9,1.17636]
[1759189130776,2.04392789,4220.0,4219.9,0.5467]
[1759189131078,2.04392789,4220.0,4219.9,0.97296]
[1759189135675,2.04392789,4220.0,4219.9,0.5467]
[1759189135867,2.04392789,4220.0,4219.9,0.97296]
[1759189139576,0.42628,4219.7,4219.6,0.42629]
[1759189139779,1.15048,4219.7,4219.6,0.97689]
[1759189141173,1.15048,4219.7,4219.6,0.5506]
[1759189141982,1.15048,4219.7,4219.6,0.97689]
[1759189143782,1.15048,4219.7,4219.6,0.5506]
[1759189145773,1.15048,4219.7,4219.6,0.97689]
[1759189146982,0.7242,4219.5,4219.4,0.3348]
[1759189147186,1.2767,4219.5,4219.4,0.76111]
[1759189147389,1.2767,4219.5,4219.4,0.97691]
[1759189149088,0.7242,4219.5,4219.4,1.19991]
[1759189155803,1.1505,4219.5,4219.4,1.19991]
[1759189156005,1.2753,4219.5,4219.4,0.42631]
[1759189156704,1.2753,4219.5,4219.4,0.74231]
[1759189156900,1.2753,4219.5,4219.4,0.95901]
[1759189157099,1.2753,4219.5,4219.0,0.1248]
[1759189157100,0.4331,4219.3,4219.2,0.95902]
[1759189157300,1.16673,4219.3,4218.9,0.00303812]
[1759189157598,1.29155,4219.0,4218.9,0.00303812]
[1759189157907,2.03369312,4219.0,4218.9,0.00303812]
[1759189160200,1.52955,4219.0,4218.9,0.00303812]
[1759189161201,2.03302102,4219.0,4218.9,0.00303812]
[1759189174819,1.79502102,4219.0,4218.9,0.00303812]
[1759189175022,2.03302102,4219.0,4218.9,0.53963812]
[1759189175911,1.40475,4219.0,4218.9,0.75983812]
[1759189176118,0.97961,4219.4,4219.3,0.7568]
[1759189176425,1.21761,4219.4,4219.3,0.7568]
[1759189176716,1.43071,4219.4,4219.3,0.7568]
[1759189180528,1.93399846,4219.4,4219.3,0.7568]
[1759189181326,1.19273,4219.2,4219.1,0.96294]
[1759189181626,1.19273,4219.2,4219.1,0.5366]
[1759189183431,1.19273,4219.2,4219.1,0.7568]
[1759189187327,0.42635,4219.0,4218.9,0.42938812]
[1759189187628,1.43075,4219.0,4218.9,0.53963812]
[1759189188330,1.43075,4219.0,4218.9,0.96599812]
[1759189191434,1.43075,4219.0,4218.9,0.53963812]
[1759189193039,1.43075,4219.0,4218.9,1.18619812]
[1759189193739,1.43075,4219.0,4218.9,0.75983812]
[1759189194036,1.55465,4219.0,4218.9,0.00303812]
[1759189195839,2.05869089,4219.0,4218.9,0.00303812]
[1759189200336,0.42642,4218.3,4218.2,0.3068]
[1759189200540,1.42062,4218.3,4218.2,0.5286]
[1759189201342,1.42062,4218.3,4218.2,0.2218]
[1759189201539,1.42062,4218.3,4218.2,0.00266802]
[1759189201941,1.42062,4218.3,4218.2,0.95769802]
[1759189202238,0.22,4218.3,4218.2,1.16949802]
[1759189202540,0.7816,4218.3,4218.2,1.16949802]
[1759189203136,1.20802,4218.3,4218.2,1.16949802]
[1759189204644,0.7816,4218.3,4218.2,1.16949802]
[1759189204839,0.238,4218.3,4218.2,1.16949802]
[1759189205045,0.4264,4218.5,4218.4,0.86001]